fUST/lending_fUST_20241105
["ID","MTS","AMOUNT","RATE_DAILY","PERIOD"]
[341315818,1730768405097,169.79608374,0.0001,2]
[341315819,1730768447143,304.226411,0.00019687,2]
[341315820,1730768467077,2011.314552,0.0002016,2]
[341315821,1730768504545,6120.0390119,0.00020115,2]
[341315822,1730768560097,4014.0,0.0002,2]
[341315823,1730768593103,8406.90329815,0.00017425,2]
[341315824,1730768593407,8406.90329815,0.000177,2]
[341315825,1730768593735,8406.90329815,0.0001787,2]
[341315826,1730768594052,8406.90329815,0.00018151,2]
[341315827,1730768594402,8406.90329815,0.00018357,2]
[341315828,1730768594698,8406.90329815,0.00018837,2]
[341315829,1730768595065,8406.90329815,0.00019137,2]
[341315830,1730768595333,8406.90329815,0.00019256,2]
[341315831,1730768595978,8406.90329815,0.00019724,2]
[341315832,1730768596424,8406.90329815,0.00019941,2]
[341315833,1730768596774,8406.90329815,0.00020042,2]
[341315834,1730768843113,-372.28544577,0.00020348,2]
[341315835,1730768846128,-391.29830314,0.00020348,2]
[341315836,1730768872085,162.828173,0.00013973,2]
[341315837,1730768915803,252.734598,0.00019856,2]
[341315838,1730768948090,-1396.7696655,0.00020245,2]
[341315839,1730768948110,-191.98488344,0.00020457,2]
[341315840,1730768948132,-1689.20581241,0.00020458,2]
[341315841,1730768948206,-174.84957423,0.00020458,2]
[341315842,1730768948228,-300.0,0.00020554,2]
[341315843,1730768948249,-300.0,0.00020554,2]
[341315844,1730768948270,-265.32769592,0.00020555,2]
[341315845,1730768948292,-500.0,0.00020555,2]
[341315846,1730768948313,-500.0,0.00020555,2]
[341315847,1730768948334,-500.0,0.00020555,2]
[341315848,1730768948354,-361.10803908,0.00020555,2]
[341315849,1730768948377,-500.0,0.00020555,2]
[341315850,1730768948397,-52.56168049,0.00020555,2]
[341315851,1730768958101,-447.43831951,0.00020555,2]
[341315852,1730768958123,-500.0,0.00020555,2]
[341315853,1730768958144,-215.24334016,0.00020555,2]
[341316060,1730769044417,-304.226412,0.00020264,2]
[341316061,1730769044427,-1023.76471107,0.00020326,2]
[341316088,1730769046717,-823.79257606,0.00020326,2]
[341316089,1730769046734,-397.73766377,0.00020326,2]
[341316090,1730769046746,-70.91642986,0.00020554,2]
[341316091,1730769046921,-229.08357014,0.00020554,2]
[341316092,1730769046931,-300.0,0.00020554,2]
[341316093,1730769047018,-544.23991034,0.00020554,2]
[341316094,1730769047030,-507.6608195,0.00020554,2]
[341316095,1730769047040,-372.43105576,0.00020554,2]
[341316096,1730769047049,-284.75665984,0.00020554,2]
[341316097,1730769047059,-500.0,0.00020554,2]
[341316098,1730769047068,-500.0,0.00020554,2]
[341316099,1730769047077,-186.80611932,0.00020554,2]
[341316100,1730769358444,161.667874,0.00013973,2]
[341316101,1730769496788,197.3614633,0.00019968,2]
[341316102,1730769573342,7949.73128651,0.0002012,2]
[341316103,1730769588031,163.645106,0.00019656,2]
[341316104,1730769588230,163.645106,0.00019665,2]
[341316105,1730769588463,163.645106,0.00019674,2]
[341316106,1730769588705,163.645106,0.00019683,2]
[341316107,1730769588917,163.645106,0.00019692,2]
[341316108,1730769589335,163.645106,0.00019701,2]
[341316109,1730769589550,163.645106,0.00019709,2]
[341316110,1730769589755,163.645106,0.00019718,2]
[341316111,1730769589946,163.645106,0.00019727,2]
[341316112,1730769590178,163.645106,0.00019736,2]
[341316113,1730769590419,163.645106,0.00019745,2]
[341316114,1730769590616,163.645106,0.00019754,2]
[341316115,1730769593360,24900.0,0.00019656,2]
[341316116,1730769702007,7949.73128651,0.00019119,2]
[341316117,1730769702338,7949.73128651,0.00019448,2]
[341316118,1730769702716,7949.73128651,0.0001954,2]
[341316119,1730769703041,7949.73128651,0.00019946,2]
[341316120,1730769827134,7949.73128652,0.00019624,2]
[341316121,1730769827451,7949.73128652,0.00019827,2]
[341316122,1730769827757,7949.73128652,0.0002011,2]
[341316123,1730769898346,162.828173,0.00013973,2]
[341316124,1730770068165,7949.73128652,0.00020166,2]
[341316125,1730770118205,3497.4596458,0.00019312,2]
[341316127,1730770148200,-175.34194163,0.00020282,2]
[341316128,1730770148223,-300.0,0.0002031,2]
[341316129,1730770148244,-300.0,0.0002031,2]
[341316130,1730770148266,-999.9099743,0.00020311,2]
[341316131,1730770148290,-500.0,0.00020311,2]
[341316132,1730770148310,-377.92236624,0.00020311,2]
[341316133,1730770148331,-417.43096613,0.00020311,2]
[341316134,1730770158096,-82.56903387,0.00020311,2]
[341316135,1730770158117,-500.0,0.00020311,2]
[341316136,1730770158138,-500.0,0.00020311,2]
[341316137,1730770158160,-500.0,0.00020311,2]
[341316138,1730770158180,-500.0,0.00020311,2]
[341316139,1730770158203,-500.0,0.00020311,2]
[341316140,1730770158227,-500.0,0.00020311,2]
[341316141,1730770158248,-237.02965331,0.00020311,2]
[341316142,1730770158269,-247.87828121,0.00020311,2]
[341316145,1730770162127,-252.12171879,0.00020311,2]
[341316146,1730770162152,-500.0,0.00020311,2]
[341316147,1730770162174,-500.0,0.00020311,2]
[341316148,1730770162198,-500.0,0.00020311,2]
[341316149,1730770162221,-349.12401847,0.00020311,2]
[341316150,1730770162242,-500.0,0.00020311,2]
[341316151,1730770162264,-500.0,0.00020311,2]
[341316152,1730770162284,-500.0,0.00020311,2]
[341316153,1730770162306,-500.0,0.00020311,2]
[341316154,1730770162328,-500.0,0.00020311,2]
[341316155,1730770162352,-500.0,0.00020311,2]
[341316156,1730770162372,-500.0,0.00020311,2]
[341316157,1730770162394,-500.0,0.00020311,2]
[341316158,1730770162414,-500.0,0.00020311,2]
[341316159,1730770162435,-500.0,0.00020311,2]
[341316160,1730770162455,-500.0,0.00020311,2]
[341316161,1730770162476,-500.0,0.00020311,2]
[341316162,1730770162498,-500.0,0.00020311,2]
[341316163,1730770162518,-500.0,0.00020311,2]
[341316164,1730770162540,-500.0,0.00020311,2]
[341316165,1730770162559,-500.0,0.00020311,2]
[341316166,1730770162580,-500.0,0.00020311,2]
[341316167,1730770162600,-500.0,0.00020311,2]
[341316168,1730770162622,-500.0,0.00020311,2]
[341316169,1730770162642,-500.0,0.00020311,2]
[341316170,1730770162663,-178.51099795,0.00020311,2]
[341316171,1730770162684,-162.54553337,0.00020311,2]
[341316172,1730770165142,-337.45446663,0.00020311,2]
[341316173,1730770165167,-500.0,0.00020311,2]
[341316174,1730770165188,-473.41097766,0.00020311,2]
[341316216,1730770238472,-1631.04846331,0.00020277,2]
[341316217,1730770238482,-300.0,0.0002031,2]
[341316218,1730770238491,-300.0,0.0002031,2]
[341316219,1730770238500,-500.0,0.0002031,2]
[341316220,1730770238509,-500.0,0.0002031,2]
[341316221,1730770238519,-500.0,0.0002031,2]
[341316222,1730770238528,-500.0,0.0002031,2]
[341316223,1730770238537,-500.0,0.0002031,2]
[341316224,1730770238546,-500.0,0.0002031,2]
[341316225,1730770238556,-500.0,0.0002031,2]
[341316226,1730770238565,-500.0,0.0002031,2]
[341316227,1730770238574,-500.0,0.0002031,2]
[341316228,1730770238583,-500.0,0.0002031,2]
[341316229,1730770238592,-500.0,0.0002031,2]
[341316230,1730770238601,-500.0,0.0002031,2]
[341316231,1730770238610,-500.0,0.0002031,2]
[341316232,1730770238619,-500.0,0.0002031,2]
[341316233,1730770238628,-500.0,0.0002031,2]
[341316234,1730770238637,-246.90464343,0.0002031,2]
[341316235,1730770238646,-500.0,0.0002031,2]
[341316236,1730770238656,-500.0,0.0002031,2]
[341316237,1730770238665,-500.0,0.0002031,2]
[341316238,1730770238674,-500.0,0.0002031,2]
[341316239,1730770238683,-500.0,0.0002031,2]
[341316240,1730770238693,-500.0,0.0002031,2]
[341316241,1730770238702,-500.0,0.0002031,2]
[341316242,1730770238711,-500.0,0.0002031,2]
[341316243,1730770238720,-500.0,0.0002031,2]
[341316244,1730770238730,-620.96869784,0.0002031,2]
[341316245,1730770238739,-500.0,0.0002031,2]
[341316246,1730770238748,-500.0,0.0002031,2]
[341316247,1730770238757,-500.0,0.0002031,2]
[341316248,1730770238767,-500.0,0.0002031,2]
[341316249,1730770238779,-500.0,0.0002031,2]
[341316250,1730770238790,-151.0,0.00020311,2]
[341316251,1730770238798,-151.0,0.00020311,2]
[341316252,1730770238807,-151.0,0.00020311,2]
[341316253,1730770238817,-151.0,0.00020311,2]
[341316254,1730770238826,-151.0,0.00020312,2]
[341316255,1730770238835,-151.0,0.00020312,2]
[341316256,1730770238844,-151.0,0.00020312,2]
[341316257,1730770238857,-151.0,0.00020312,2]
[341316258,1730770238867,-151.0,0.00020312,2]
[341316259,1730770238876,-250.917552,0.00020312,2]
[341316260,1730770238885,-151.0,0.00020312,2]
[341316261,1730770238893,-151.0,0.00020312,2]
[341316262,1730770238903,-371.006587,0.00020312,2]
[341316263,1730770238911,-371.006587,0.00020312,2]
[341316264,1730770238920,-151.0,0.00020313,2]
[341316265,1730770238929,-151.0,0.00020313,2]
[341316266,1730770238939,-151.0,0.00020313,2]
[341316267,1730770238948,-151.0,0.00020313,2]
[341316268,1730770238957,-151.0,0.00020313,2]
[341316269,1730770238966,-371.006587,0.00020313,2]
[341316270,1730770238975,-371.006587,0.00020313,2]
[341316271,1730770238985,-151.0,0.0002037,2]
[341316272,1730770238996,-151.0,0.0002037,2]
[341316273,1730770239006,-151.0,0.0002037,2]
[341316274,1730770239015,-151.0,0.0002037,2]
[341316275,1730770239028,-151.0,0.0002037,2]
[341316276,1730770239045,-371.006587,0.0002037,2]
[341316277,1730770239054,-371.006587,0.0002037,2]
[341316278,1730770239063,-12752.42703055,0.00020377,2]
[341316279,1730770239072,-151.0,0.00020377,2]
[341316280,1730770239082,-151.0,0.00020377,2]
[341316281,1730770239091,-151.0,0.00020381,2]
[341316282,1730770239100,-151.0,0.00020381,2]
[341316283,1730770239109,-151.0,0.00020381,2]
[341316284,1730770239119,-151.0,0.00020381,2]
[341316285,1730770239128,-151.0,0.00020381,2]
[341316286,1730770239138,-151.0,0.00020381,2]
[341316287,1730770239158,-151.0,0.00020381,2]
[341316288,1730770239167,-151.0,0.00020381,2]
[341316289,1730770239176,-151.0,0.00020381,2]
[341316290,1730770239186,-151.0,0.00020381,2]
[341316291,1730770239196,-151.0,0.00020381,2]
[341316292,1730770239205,-151.0,0.00020381,2]
[341316293,1730770239215,-151.0,0.00020381,2]
[341316294,1730770239224,-151.0,0.00020381,2]
[341316295,1730770239233,-151.0,0.00020381,2]
[341316296,1730770239242,-151.0,0.00020381,2]
[341316297,1730770239251,-151.0,0.00020381,2]
[341316298,1730770239261,-320.67861335,0.00020382,2]
[341316299,1730770239274,-151.0,0.00020382,2]
[341316300,1730770239284,-151.0,0.00020382,2]
[341316301,1730770239293,-151.0,0.00020382,2]
[341316302,1730770239303,-151.0,0.00020382,2]
[341316303,1730770239314,-151.0,0.00020382,2]
[341316304,1730770239323,-222.883502,0.00020382,2]
[341316305,1730770239332,-222.883502,0.00020382,2]
[341316306,1730770239342,-151.0,0.00020382,2]
[341316307,1730770239351,-151.0,0.00020382,2]
[341316308,1730770239360,-222.883502,0.00020382,2]
[341316309,1730770239370,-222.883502,0.00020382,2]
[341316310,1730770239379,-151.0,0.00020382,2]
[341316311,1730770239389,-151.0,0.00020382,2]
[341316312,1730770239399,-151.0,0.00020382,2]
[341316313,1730770239412,-151.0,0.00020382,2]
[341316314,1730770239421,-151.0,0.00020382,2]
[341316315,1730770239431,-201.090662,0.00020382,2]
[341316316,1730770239440,-151.0,0.00020382,2]
[341316317,1730770239449,-151.0,0.00020382,2]
[341316318,1730770239459,-151.0,0.00020382,2]
[341316319,1730770239468,-151.0,0.00020382,2]
[341316320,1730770239477,-151.0,0.00020382,2]
[341316321,1730770239489,-151.0,0.00020382,2]
[341316323,1730770239498,-151.0,0.00020382,2]
[341316324,1730770239508,-151.0,0.00020382,2]
[341316326,1730770239520,-151.0,0.00020382,2]
[341316328,1730770239529,-151.0,0.00020382,2]
[341316330,1730770239538,-186.031284,0.00020382,2]
[341316332,1730770239547,-151.0,0.00020382,2]
[341316334,1730770239556,-151.0,0.00020382,2]
[341316336,1730770239565,-151.0,0.00020382,2]
[341316338,1730770239574,-151.0,0.00020382,2]
[341316340,1730770239583,-151.0,0.00020382,2]
[341316342,1730770239592,-151.0,0.00020382,2]
[341316344,1730770239601,-151.0,0.00020382,2]
[341316346,1730770239611,-371.006587,0.00020382,2]
[341316348,1730770239620,-371.006587,0.00020382,2]
[341316350,1730770239629,-151.0,0.00020383,2]
[341316352,1730770239639,-7949.73128653,0.00020468,2]
[341316354,1730770239648,-333.89828753,0.00020548,2]
[341316356,1730770239657,-151.0,0.00020549,2]
[341316357,1730770239667,-151.0,0.00020549,2]
[341316358,1730770239677,-151.0,0.00020549,2]
[341316359,1730770239686,-151.0,0.00020549,2]
[341316360,1730770239695,-151.0,0.00020549,2]
[341316361,1730770239704,-151.0,0.0002055,2]
[341316362,1730770239714,-151.0,0.0002055,2]
[341316363,1730770239723,-222.883502,0.0002055,2]
[341316364,1730770239732,-151.0,0.0002055,2]
[341316365,1730770239741,-222.883502,0.0002055,2]
[341316366,1730770239751,-282.593766,0.0002055,2]
[341316367,1730770239761,-151.0,0.0002055,2]
[341316368,1730770239774,-151.0,0.0002055,2]
[341316369,1730770239783,-151.0,0.0002055,2]
[341316370,1730770239793,-151.0,0.0002055,2]
[341316371,1730770239802,-188.230433,0.0002055,2]
[341316372,1730770239812,-151.0,0.0002055,2]
[341316373,1730770239822,-151.0,0.0002055,2]
[341316374,1730770239831,-176.395566,0.0002055,2]
[341316375,1730770239841,-151.0,0.00020551,2]
[341316376,1730770239850,-151.842247,0.00020551,2]
[341316377,1730770239860,-999.30048966,0.00020552,2]
[341316378,1730770239870,-158.30591,0.00020552,2]
[341316379,1730770239879,-151.0,0.00020552,2]
[341316380,1730770239888,-222.883502,0.00020552,2]
[341316381,1730770239897,-151.0,0.00020552,2]
[341316382,1730770239906,-222.883502,0.00020552,2]
[341316383,1730770239916,-152.427286,0.00020552,2]
[341316384,1730770239925,-151.0,0.00020552,2]
[341316385,1730770239935,-151.0,0.00020552,2]
[341316386,1730770239944,-254.28037,0.00020552,2]
[341316387,1730770239954,-151.0,0.00020552,2]
[341316388,1730770239963,-151.0,0.00020552,2]
[341316389,1730770239972,-151.0,0.00020552,2]
[341316390,1730770239982,-151.0,0.00020552,2]
[341316391,1730770239991,-151.0,0.00020552,2]
[341316392,1730770240000,-151.0,0.00020552,2]
[341316393,1730770240009,-151.0,0.00020552,2]
[341316394,1730770240020,-261.821025,0.00020552,2]
[341316397,1730770240030,-371.006587,0.00020552,2]
[341316398,1730770240133,-371.006587,0.00020552,2]
[341316399,1730770240142,-151.0,0.00020553,2]
[341316400,1730770240151,-151.0,0.00020553,2]
[341316401,1730770240161,-151.0,0.00020553,2]
[341316402,1730770240170,-151.0,0.00020553,2]
[341316403,1730770240179,-151.0,0.00020553,2]
[341316404,1730770240189,-151.0,0.00020553,2]
[341316405,1730770240198,-151.0,0.00020554,2]
[341316406,1730770240207,-151.0,0.00020558,2]
[341316407,1730770240215,-222.883502,0.00020558,2]
[341316408,1730770240226,-151.0,0.00020558,2]
[341316409,1730770240234,-222.883502,0.00020558,2]
[341316410,1730770240243,-186.495207,0.00020558,2]
[341316411,1730770240252,-151.0,0.00020558,2]
[341316412,1730770240262,-151.0,0.00020558,2]
[341316413,1730770240271,-151.0,0.00020558,2]
[341316414,1730770240280,-151.0,0.00020558,2]
[341316415,1730770240289,-151.0,0.00020558,2]
[341316416,1730770240298,-371.006587,0.00020558,2]
[341316417,1730770240307,-371.006587,0.00020558,2]
[341316418,1730770240316,-151.0,0.00020789,2]
[341316419,1730770240325,-196.97885,0.00020789,2]
[341316420,1730770240334,-151.0,0.00020789,2]
[341316421,1730770240343,-151.0,0.00020883,2]
[341316422,1730770240353,-151.0,0.00020883,2]
[341316423,1730770240362,-7949.73128653,0.00020936,2]
[341316424,1730770240372,-151.0,0.00020957,2]
[341316425,1730770240381,-222.883502,0.00021011,2]
[341316426,1730770240390,-151.0,0.00021011,2]
[341316427,1730770240399,-222.883502,0.00021011,2]
[341316428,1730770240408,-151.0,0.00021011,2]
[341316429,1730770240417,-151.0,0.00021011,2]
[341316430,1730770240426,-157.743434,0.00021011,2]
[341316431,1730770240435,-238.469128,0.00021034,2]
[341316432,1730770240444,-151.0,0.00021034,2]
[341316433,1730770240453,-151.0,0.00021034,2]
[341316434,1730770240463,-371.006587,0.00021034,2]
[341316435,1730770240472,-371.006587,0.00021034,2]
[341316436,1730770240482,-151.0,0.00021068,2]
[341316437,1730770240491,-151.0,0.00021068,2]
[341316438,1730770240500,-151.0,0.00021068,2]
[341316439,1730770240509,-222.883502,0.00021163,2]
[341316440,1730770240518,-222.883502,0.00021163,2]
[341316441,1730770240529,-151.0,0.00021163,2]
[341316442,1730770240538,-151.0,0.00021163,2]
[341316443,1730770240547,-151.0,0.0002119,2]
[341316444,1730770240556,-500.26328283,0.0002124,2]
[341316445,1730770240565,-7949.73128653,0.00021264,2]
[341316446,1730770240575,-151.0,0.00021292,2]
[341316447,1730770240584,-151.0,0.00021349,2]
[341316448,1730770240593,-151.0,0.00021349,2]
[341316449,1730770240602,-151.0,0.00021349,2]
[341316450,1730770240612,-194.522808,0.00021356,2]
[341316451,1730770240622,-151.0,0.00021356,2]
[341316452,1730770240631,-371.006587,0.00021356,2]
[341316453,1730770240640,-371.006587,0.00021356,2]
[341316454,1730770240650,-222.883502,0.00021437,2]
[341316455,1730770240659,-222.883502,0.00021437,2]
[341316456,1730770240668,-151.0,0.00021437,2]
[341316457,1730770240678,-151.0,0.00021437,2]
[341316458,1730770240688,-500.0,0.00021567,2]
[341316459,1730770240697,-542.76806701,0.00021567,2]
[341316460,1730770240706,-604.93811673,0.00021567,2]
[341316461,1730770240715,-500.0,0.00021567,2]
[341316462,1730770240724,-504.10922432,0.00021567,2]
[341316463,1730770240733,-151.0,0.00021602,2]
[341316464,1730770240742,-151.0,0.00021613,2]
[341316465,1730770240751,-327.56,0.00021754,3]
[341316466,1730770240761,-500.0,0.00021764,2]
[341316467,1730770240775,-501.78865778,0.00021764,2]
[341316468,1730770240784,-502.51838893,0.00021764,2]
[341316469,1730770240792,-222.883502,0.00021764,2]
[341316470,1730770240801,-222.883502,0.00021764,2]
[341316471,1730770240810,-151.0,0.00021764,2]
[341316472,1730770240820,-151.0,0.00021764,2]
[341316473,1730770240830,-151.0,0.00021764,2]
[341316474,1730770240839,-151.0,0.00021764,2]
[341316475,1730770240850,-151.0,0.00021764,2]
[341316476,1730770240859,-151.0,0.00021764,2]
[341316477,1730770240868,-371.006587,0.00021764,2]
[341316478,1730770240878,-371.006587,0.00021764,2]
[341316479,1730770240887,-500.0,0.00021767,2]
[341316480,1730770240896,-298.076236,0.00021789,2]
[341316481,1730770240904,-500.0,0.00021849,2]
[341316482,1730770240913,-222.883502,0.00021917,2]
[341316483,1730770240922,-222.883502,0.00021917,2]
[341316484,1730770240932,-22.73291424,0.00021917,2]
[341316485,1730770240976,-128.26708576,0.00021917,2]
[341316486,1730770240985,-151.0,0.00021917,2]
[341316487,1730770240995,-151.0,0.00021917,2]
[341316488,1730770241004,-151.0,0.00021917,2]
[341316489,1730770241013,-371.006587,0.00021917,2]
[341316490,1730770241024,-371.006589,0.00021917,2]
[341316491,1730770241033,-5000.0,0.00021917,2]
[341316492,1730770241042,-5000.0,0.00021917,2]
[341316493,1730770241051,-1064.27329956,0.00021917,2]
[341316494,1730770241060,-151.0,0.00021918,2]
[341316495,1730770241069,-195.86438,0.00021918,2]
[341316496,1730770241078,-166.666666,0.00021918,2]
[341316497,1730770241087,-17446.67321692,0.00022,30]
[341316498,1730770241096,-420.0,0.00022108,2]
[341316499,1730770241106,-420.0,0.00022341,2]
[341316500,1730770241115,-166.666666,0.00022431,2]
[341316501,1730770241124,-587.10214362,0.00022937,2]
[341316502,1730770241133,-1000.0,0.00022937,2]
[341316503,1730770241142,-166.666666,0.00022944,2]
[341316504,1730770241151,-1631.04846327,0.00023366,2]
[341316505,1730770241159,-166.666666,0.00023456,2]
[341316506,1730770241168,-162.213846,0.00023494,2]
[341316507,1730770241177,-175.64424,0.00023836,2]
[341316508,1730770241186,-166.666666,0.00023969,2]
[341316509,1730770241195,-587.0,0.00024066,2]
[341316510,1730770241204,-161.667874,0.00024224,2]
[341316511,1730770241214,-166.666666,0.00024482,2]
[341316512,1730770241223,-587.0,0.00024575,2]
[341316513,1730770241233,-5000.0,0.00024658,2]
[341316514,1730770241242,-5000.0,0.00024658,2]
[341316515,1730770241250,-5000.0,0.00024658,2]
[341316516,1730770241259,-5000.0,0.00024658,2]
[341316517,1730770241268,-5000.0,0.00024658,2]
[341316518,1730770241280,-5000.0,0.00024658,2]
[341316519,1730770241289,-5000.0,0.00024658,2]
[341316520,1730770241298,-5000.0,0.00024658,2]
[341316521,1730770241307,-5000.0,0.00024658,2]
[341316522,1730770241315,-5000.0,0.00024658,2]
[341316523,1730770241325,-5000.0,0.00024658,2]
[341316524,1730770241334,-5000.0,0.00024658,2]
[341316525,1730770241343,-5000.0,0.00024658,2]
[341316526,1730770241351,-2593.14037211,0.00024658,2]
[341316571,1730770243795,-2406.85962789,0.00024658,2]
[341316573,1730770243805,-4488.25068177,0.00024658,2]
[341316678,1730770246145,-500.0,0.0002031,2]
[341316680,1730770390516,161.228314,0.00013973,2]
[341316681,1730771006549,842.55897503,0.00033663,30]
[341316682,1730771071634,417.0,0.00033663,30]
[341316683,1730771071839,801.1776,0.00033663,30]
[341316684,1730771072127,734.33,0.00033663,30]
[341316685,1730771072412,673.11,0.00033663,30]
[341316686,1730771072708,617.0,0.00033663,30]
[341316687,1730771073005,565.72078,0.00033663,30]
[341316688,1730771073292,518.0,0.00033663,30]
[341316689,1730771073591,475.4056,0.00033663,30]
[341316690,1730771073948,435.8,0.00033663,30]
[341316691,1730771074250,1198.55816,0.00033663,30]
[341316692,1730771074554,898.0,0.00033663,30]
[341316693,1730771075338,673.0739,0.00033663,30]
[341316694,1730771075994,674.0,0.00033663,30]
[341316695,1730771083813,505.41,0.00033663,30]
[341316696,1730771084114,379.384,0.00033663,30]
[341316697,1730771087414,462.5,0.00033663,30]
[341316698,1730771242162,-228.53208248,0.00021917,2]
[341316699,1730771348107,-38.87165052,0.00021917,2]
[341316783,1730771443859,-167.71773,0.00022605,2]
[341316784,1730771443868,-430.03428018,0.00022946,2]
[341316787,1730771444157,-72.80565242,0.00022946,2]
[341316790,1730771446293,-320.0,0.00022946,2]
[341316791,1730771446363,-3560.12505902,0.00022946,2]
[341316792,1730771446375,-774.0704,0.00022946,2]
[341316793,1730771525770,161.228314,0.00013973,2]
[341316796,1730772437132,-849.8162796,0.00021624,2]
[341316797,1730772437154,-167.507518,0.00021918,2]
[341316798,1730772437176,-139.40043212,0.00022004,2]
[341316799,1730772447580,-300.0,0.00022102,2]
[341316800,1730772447603,-300.0,0.00022102,2]
[341316801,1730772447626,-500.0,0.00022103,2]
[341316802,1730772447646,-502.50339857,0.00022103,2]
[341316803,1730772447667,-500.0,0.00022103,2]
[341316804,1730772447687,-500.0,0.00022103,2]
[341316805,1730772447708,-500.0,0.00022103,2]
[341316806,1730772447729,-124.91749566,0.00022103,2]
[341316807,1730772575985,594.484564,0.00033665,120]
[341316808,1730772577342,161.228314,0.00013973,2]
[341316889,1730772632582,-470.08366894,0.00022004,2]
[341316932,1730772639012,-358.60232158,0.00022004,2]
[341316991,1730772644336,-491.50619109,0.00022004,2]
[341316993,1730772644346,-110.71880891,0.00022101,2]
[341317161,1730772738655,5760.01095741,0.00021102,2]
[341317162,1730772940164,278.2923904,0.00019893,2]
[341317163,1730773123983,307.6625289,0.00019955,2]
[341317164,1730773166821,231.6974671,0.00013973,2]
[341317165,1730773272015,22978.8192348,0.00019829,2]
[341317166,1730773396274,379.1138949,0.00019857,2]
[341317167,1730773397925,928.5630167,0.00019821,2]
[341317171,1730773629121,-256.62890618,0.00020205,2]
[341317172,1730773629143,-162.213846,0.00020305,2]
[341317173,1730773629166,-162.213846,0.00020356,2]
[341317174,1730773629188,-162.213846,0.00020407,2]
[341317175,1730773629209,-300.0,0.00021093,2]
[341317176,1730773629231,-244.20197879,0.00021093,2]
[341317178,1730773720786,493.9254271,0.00033666,30]
[341317183,1730773756242,603.0,0.000241,120]
[341317187,1730773771104,-1853.872764,0.00020377,2]
[341317193,1730773831168,161.228314,0.00013973,2]
[341317220,1730773832625,-1579.96562258,0.00020994,2]
[341317221,1730773832635,-300.0,0.00021092,2]
[341317222,1730773832644,-300.0,0.00021092,2]
[341317223,1730773832654,-213.78574223,0.00021093,2]
[341317225,1730773832665,-151.0,0.00021093,2]
[341317226,1730773832674,-151.0,0.00021093,2]
[341317227,1730773832684,-185.990326,0.00021093,2]
[341317228,1730773832693,-151.0,0.00021093,2]
[341317229,1730773832702,-500.0,0.00021093,2]
[341317230,1730773832711,-601.24573726,0.00021093,2]
[341317231,1730773832720,-430.2158818,0.00021093,2]
[341317236,1730773838623,-217.7566861,0.00021092,2]
[341317237,1730773838633,-500.0,0.00021092,2]
[341317238,1730773838643,-500.0,0.00021092,2]
[341317239,1730773838652,-500.0,0.00021092,2]
[341317240,1730773838662,-226.75535782,0.00021092,2]
[341317241,1730773838674,-273.24464218,0.00021092,2]
[341317242,1730773838684,-309.17289621,0.00021092,2]
[341317243,1730773838695,-190.82710379,0.00021092,2]
[341317244,1730773838704,-500.0,0.00021092,2]
[341317245,1730773838714,-500.0,0.00021092,2]
[341317246,1730773838723,-191.90171621,0.00021092,2]